fUSD/lending_fUSD_20250514
["ID","MTS","AMOUNT","RATE_DAILY","PERIOD"]
[361108164,1747264249495,-400.0,0.00011178,2]
[361108165,1747264249505,-450.0,0.00011178,2]
[361108166,1747264249514,-400.0,0.00011178,2]
[361108167,1747264249523,-400.0,0.00011178,2]
[361108168,1747264249534,-400.0,0.00011178,2]
[361108169,1747264249544,-400.0,0.00011178,2]
[361108170,1747264249553,-400.0,0.00011178,2]
[361108171,1747264249563,-400.0,0.00011178,2]
[361108172,1747264249573,-444.04,0.00011178,2]
[361108173,1747264249583,-400.0,0.00011178,2]
[361108174,1747264249593,-400.0,0.00011178,2]
[361108175,1747264249602,-400.0,0.00011178,2]
[361108176,1747264249613,-450.0,0.00011178,2]
[361108177,1747264249623,-400.0,0.00011178,2]
[361108178,1747264249633,-450.0,0.00011178,2]
[361108179,1747264249642,-400.0,0.00011178,2]
[361108180,1747264249652,-400.0,0.00011178,2]
[361108181,1747264249862,-400.0,0.00011178,2]
[361108182,1747264249872,-400.0,0.00011178,2]
[361108183,1747264249882,-478.11,0.00011178,2]
[361108184,1747264249892,-400.0,0.00011178,2]
[361108185,1747264249902,-400.0,0.00011178,2]
[361108186,1747264249911,-400.0,0.00011178,2]
[361108187,1747264249921,-618.77,0.00011178,2]
[361108188,1747264249931,-914.64,0.00011178,2]
[361108189,1747264249941,-405.64,0.00011178,2]
[361108190,1747264249950,-400.0,0.00011178,2]
[361108191,1747264249960,-592.23,0.00011178,2]
[361108192,1747264249970,-400.0,0.00011178,2]
[361108193,1747264249980,-400.0,0.00011178,2]
[361108194,1747264249989,-292.78088434,0.00011178,2]
[361108195,1747264249999,-311.37229277,0.00011178,2]
[361108196,1747264250009,-1199.27,0.00011178,2]
[361108197,1747264250019,-400.0,0.00011178,2]
[361108198,1747264250028,-400.0,0.00011178,2]
[361108199,1747264250038,-400.0,0.00011178,2]
[361108200,1747264250047,-943.59,0.00011178,2]
[361108201,1747264250057,-400.0,0.00011178,2]
[361108202,1747264250067,-400.0,0.00011178,2]
[361108203,1747264250076,-400.0,0.00011178,2]
[361108204,1747264250086,-400.0,0.00011178,2]
[361108205,1747264250095,-400.0,0.00011178,2]
[361108206,1747264250105,-400.0,0.00011178,2]
[361108207,1747264250114,-554.77,0.00011178,2]
[361108208,1747264250124,-400.0,0.00011178,2]
[361108209,1747264250134,-400.0,0.00011178,2]
[361108210,1747264250144,-400.0,0.00011178,2]
[361108211,1747264250154,-400.0,0.00011178,2]
[361108212,1747264250164,-400.0,0.00011178,2]
[361108213,1747264250173,-400.0,0.00011178,2]
[361108214,1747264250183,-428.18,0.00011178,2]
[361108215,1747264250193,-400.0,0.00011178,2]
[361108216,1747264250203,-400.0,0.00011178,2]
[361108217,1747264250213,-400.0,0.00011178,2]
[361108218,1747264250221,-400.0,0.00011178,2]
[361108219,1747264250231,-400.0,0.00011178,2]
[361108220,1747264250241,-2436.94311321,0.00011178,2]
[361108221,1747264250251,-400.0,0.00011178,2]
[361108222,1747264250260,-400.0,0.00011178,2]
[361108223,1747264250270,-400.0,0.00011178,2]
[361108224,1747264250279,-400.0,0.00011178,2]
[361108225,1747264250289,-400.0,0.00011178,2]
[361108226,1747264250300,-400.0,0.00011178,2]
[361108227,1747264250310,-400.0,0.00011178,2]
[361108228,1747264250319,-400.0,0.00011178,2]
[361108229,1747264250330,-400.0,0.00011178,2]
[361108230,1747264250340,-400.0,0.00011178,2]
[361108231,1747264250350,-400.0,0.00011178,2]
[361108232,1747264250361,-400.0,0.00011178,2]
[361108233,1747264250372,-400.0,0.00011178,2]
[361108234,1747264250382,-565.13,0.00011178,2]
[361108235,1747264250394,-400.0,0.00011178,2]
[361108236,1747264250405,-263.87401698,0.00011178,2]
[361108237,1747264250415,-400.0,0.00011178,2]
[361108238,1747264250425,-400.0,0.00011178,2]
[361108239,1747264250434,-400.0,0.00011178,2]
[361108240,1747264250444,-400.0,0.00011178,2]
[361108241,1747264250455,-400.0,0.00011178,2]
[361108242,1747264250465,-400.0,0.00011178,2]
[361108243,1747264250475,-403.39,0.00011178,2]
[361108244,1747264250485,-400.0,0.00011178,2]
[361108245,1747264250495,-400.0,0.00011178,2]
[361108246,1747264250505,-606.57,0.00011178,2]
[361108247,1747264250515,-400.0,0.00011178,2]
[361108248,1747264250525,-400.0,0.00011178,2]
[361108249,1747264250537,-400.0,0.00011178,2]
[361108250,1747264250547,-400.0,0.00011178,2]
[361108251,1747264250557,-400.0,0.00011178,2]
[361108252,1747264250567,-400.0,0.00011178,2]
[361108253,1747264250577,-400.0,0.00011178,2]
[361108254,1747264250587,-565.61,0.00011178,2]
[361108255,1747264250597,-400.0,0.00011178,2]
[361108256,1747264250607,-400.0,0.00011178,2]
[361108257,1747264250617,-407.23,0.00011178,2]
[361108258,1747264250627,-400.0,0.00011178,2]
[361108259,1747264250637,-400.0,0.00011178,2]
[361108260,1747264250647,-400.0,0.00011178,2]
[361108261,1747264250657,-400.0,0.00011178,2]
[361108262,1747264250667,-400.0,0.00011178,2]
[361108263,1747264250676,-400.0,0.00011178,2]
[361108264,1747264250686,-400.0,0.00011178,2]
[361108265,1747264250696,-400.0,0.00011178,2]
[361108266,1747264250707,-400.0,0.00011178,2]
[361108267,1747264250717,-400.0,0.00011178,2]
[361108268,1747264250727,-400.0,0.00011178,2]
[361108269,1747264250737,-500.0,0.00011178,2]
[361108270,1747264250747,-500.0,0.00011178,2]
[361108271,1747264250756,-400.0,0.00011178,2]
[361108272,1747264250766,-500.0,0.00011178,2]
[361108273,1747264250775,-400.0,0.00011178,2]
[361108274,1747264250784,-400.0,0.00011178,2]
[361108275,1747264250794,-400.0,0.00011178,2]
[361108276,1747264250803,-543.08,0.00011178,2]
[361108277,1747264250813,-400.0,0.00011178,2]
[361108278,1747264250823,-400.0,0.00011178,2]
[361108279,1747264250832,-500.0,0.00011178,2]
[361108280,1747264250842,-446.86,0.00011178,2]
[361108281,1747264250851,-400.0,0.00011178,2]
[361108282,1747264250861,-400.0,0.00011178,2]
[361108283,1747264250871,-400.0,0.00011178,2]
[361108284,1747264250880,-400.0,0.00011178,2]
[361108285,1747264250890,-2357.92,0.00011178,2]
[361108286,1747264250900,-400.0,0.00011178,2]
[361108287,1747264250909,-614.62,0.00011178,2]
[361108288,1747264250919,-400.0,0.00011178,2]
[361108289,1747264250928,-568.91,0.00011178,2]
[361108290,1747264250938,-833.67,0.00011178,2]
[361108291,1747264250948,-400.0,0.00011178,2]
[361108292,1747264250957,-400.0,0.00011178,2]
[361108293,1747264250967,-442.74,0.00011178,2]
[361108294,1747264250977,-572.77,0.00011178,2]
[361108295,1747264250986,-400.0,0.00011178,2]
[361108296,1747264250995,-547.5,0.00011178,2]
[361108297,1747264251005,-400.0,0.00011178,2]
[361108298,1747264251014,-400.0,0.00011178,2]
[361108299,1747264251024,-400.0,0.00011178,2]
[361108300,1747264251034,-1577.88,0.00011178,2]
[361108301,1747264251043,-400.0,0.00011178,2]
[361108302,1747264251053,-1143.94,0.00011178,2]
[361108303,1747264251063,-400.0,0.00011178,2]
[361108304,1747264251073,-428.61,0.00011178,2]
[361108305,1747264251083,-400.0,0.00011178,2]
[361108306,1747264251092,-461.02,0.00011178,2]
[361108307,1747264251102,-400.0,0.00011178,2]
[361108308,1747264251111,-571.15,0.00011178,2]
[361108309,1747264251121,-400.0,0.00011178,2]
[361108310,1747264251131,-400.0,0.00011178,2]
[361108311,1747264251140,-575.08,0.00011178,2]
[361108312,1747264251150,-400.0,0.00011178,2]
[361108313,1747264251159,-1410.22,0.00011178,2]
[361108314,1747264251169,-459.54,0.00011178,2]
[361108315,1747264251179,-1444.34,0.00011178,2]
[361108316,1747264251189,-636.01,0.00011178,2]
[361108317,1747264251200,-400.0,0.00011178,2]
[361108318,1747264251209,-409.88,0.00011178,2]
[361108319,1747264251218,-732.07,0.00011178,2]
[361108320,1747264251228,-772.23,0.00011178,2]
[361108321,1747264251237,-520.06,0.00011178,2]
[361108322,1747264251247,-400.0,0.00011178,2]
[361108323,1747264251257,-400.0,0.00011178,2]
[361108324,1747264251267,-1011.91,0.00011178,2]
[361108325,1747264251276,-737.17,0.00011178,2]
[361108326,1747264251286,-400.0,0.00011178,2]
[361108327,1747264251296,-400.0,0.00011178,2]
[361108328,1747264251305,-400.0,0.00011178,2]
[361108329,1747264251315,-400.0,0.00011178,2]
[361108330,1747264251325,-400.0,0.00011178,2]
[361108331,1747264251334,-578.03,0.00011178,2]
[361108332,1747264251344,-679.98,0.00011178,2]
[361108333,1747264251354,-831.99,0.00011178,2]
[361108334,1747264251364,-400.0,0.00011178,2]
[361108335,1747264251373,-400.0,0.00011178,2]
[361108336,1747264251383,-151.0,0.00011178,2]
[361108337,1747264251393,-151.0,0.00011178,2]
[361108338,1747264251402,-151.0,0.00011178,2]
[361108339,1747264251412,-151.0,0.00011178,2]
[361108340,1747264251422,-151.0,0.00011178,2]
[361108341,1747264251432,-151.0,0.00011178,2]
[361108342,1747264251442,-151.0,0.00011178,2]
[361108343,1747264251451,-400.0,0.00011178,2]
[361108344,1747264251461,-151.0,0.00011178,2]
[361108345,1747264251470,-151.0,0.00011178,2]
[361108346,1747264251480,-151.0,0.00011178,2]
[361108347,1747264251489,-151.0,0.00011178,2]
[361108348,1747264251499,-151.0,0.00011178,2]
[361108349,1747264251508,-151.0,0.00011178,2]
[361108350,1747264251518,-151.0,0.00011178,2]
[361108351,1747264251528,-400.0,0.00011178,2]
[361108352,1747264251540,-853.7,0.00011178,2]
[361108353,1747264251550,-400.0,0.00011178,2]
[361108354,1747264251560,-517.5,0.00011178,2]
[361108355,1747264251570,-400.0,0.00011178,2]
[361108356,1747264251582,-400.0,0.00011178,2]
[361108357,1747264251592,-400.0,0.00011178,2]
[361108358,1747264251602,-500.0,0.00011179,2]
[361108359,1747264251612,-1518.62,0.00011179,2]
[361108360,1747264251622,-500.0,0.00011179,2]
[361108361,1747264251632,-487.94,0.00011179,2]
[361108362,1747264251642,-500.0,0.00011185,2]
[361108363,1747264251652,-1518.62,0.00011185,2]
[361108364,1747264251661,-500.0,0.00011185,2]
[361108365,1747264251672,-150.0,0.00011204,2]
[361108366,1747264251682,-200.0,0.00011232,2]
[361108367,1747264251692,-4000.0,0.00011233,2]
[361108368,1747264251702,-352.8,0.000113,2]
[361108369,1747264251712,-1000.0,0.00011309,2]
[361108370,1747264251722,-298.52029272,0.00011351,2]
[361108371,1747264251732,-393.02113648,0.00011351,2]
[361108372,1747264251741,-12435.68774081,0.00011357,2]
[361108373,1747264251751,-150.0,0.000114,2]
[361108374,1747264251760,-330.94,0.000114,2]
[361108375,1747264251771,-151.0,0.00011421,2]
[361108376,1747264251780,-151.0,0.00011422,2]
[361108377,1747264251790,-151.0,0.00011423,2]
[361108378,1747264251800,-151.0,0.00011423,2]
[361108379,1747264251809,-151.0,0.00011423,2]
[361108380,1747264251819,-151.0,0.00011423,2]
[361108381,1747264251828,-547.27,0.00011425,2]
[361108382,1747264251838,-151.0,0.00011426,2]
[361108383,1747264251847,-837.0,0.00011426,2]
[361108384,1747264251858,-6822.0,0.00011426,2]
[361108385,1747264251868,-224.193,0.00011426,2]
[361108386,1747264251877,-4032.0,0.00011426,2]
[361108387,1747264251887,-879.0,0.00011426,2]
[361108388,1747264251896,-241.69271005,0.00011442,2]
[361108389,1747264251906,-460.7,0.0001145,2]
[361108390,1747264251915,-400.0,0.0001145,2]
[361108391,1747264251925,-564.43,0.0001145,2]
[361108392,1747264251934,-591.33,0.0001145,2]
[361108393,1747264251945,-175.23562028,0.0001145,2]
[361108394,1747264251955,-400.0,0.0001145,2]
[361108395,1747264251964,-400.0,0.0001145,2]
[361108396,1747264251974,-1034.53,0.0001145,2]
[361108397,1747264251984,-3042.34,0.0001145,2]
[361108398,1747264251993,-400.0,0.0001145,2]
[361108399,1747264252003,-400.0,0.0001145,2]
[361108400,1747264252013,-400.0,0.0001145,2]
[361108401,1747264252023,-400.0,0.0001145,2]
[361108402,1747264252033,-688.76,0.0001145,2]
[361108403,1747264252042,-4870.56,0.0001145,2]
[361108404,1747264252052,-623.04,0.0001145,2]
[361108405,1747264252062,-1611.73,0.0001145,2]
[361108406,1747264252071,-583.04,0.0001145,2]
[361108407,1747264252081,-520.17,0.0001145,2]
[361108408,1747264252091,-400.0,0.0001145,2]
[361108409,1747264252101,-400.0,0.0001145,2]
[361108410,1747264252110,-904.64,0.0001145,2]
[361108411,1747264252120,-400.0,0.0001145,2]
[361108412,1747264252130,-400.0,0.0001145,2]
[361108413,1747264252140,-400.0,0.0001145,2]
[361108414,1747264252149,-455.41,0.0001145,2]
[361108415,1747264252159,-824.3,0.0001145,2]
[361108416,1747264252169,-1128.45,0.0001145,2]
[361108417,1747264252180,-531.71,0.0001145,2]
[361108418,1747264252189,-400.0,0.0001145,2]
[361108419,1747264252199,-1437.463881,0.0001145,2]
[361108420,1747264252268,-400.0,0.0001145,2]
[361108421,1747264252278,-662.22,0.0001145,2]
[361108422,1747264252287,-400.0,0.0001145,2]
[361108423,1747264252296,-400.0,0.0001145,2]
[361108424,1747264252306,-400.0,0.0001145,2]
[361108425,1747264252317,-400.0,0.0001145,2]
[361108426,1747264252326,-300.0,0.0001145,2]
[361108427,1747264252335,-400.0,0.00011451,2]
[361108428,1747264252345,-400.0,0.00011451,2]
[361108429,1747264252355,-219.0,0.00011451,2]
[361108430,1747264252364,-550.35,0.00011451,2]
[361108431,1747264252374,-400.0,0.00011451,2]
[361108432,1747264252384,-400.0,0.00011451,2]
[361108433,1747264252393,-400.0,0.00011451,2]
[361108434,1747264252403,-400.0,0.00011451,2]
[361108435,1747264252412,-400.0,0.00011451,2]
[361108436,1747264252422,-400.0,0.00011451,2]
[361108437,1747264252431,-400.0,0.00011451,2]
[361108438,1747264252441,-400.0,0.00011451,2]
[361108439,1747264252451,-400.0,0.00011451,2]
[361108440,1747264252460,-400.0,0.00011451,2]
[361108441,1747264252470,-400.0,0.00011451,2]
[361108442,1747264252479,-400.0,0.00011451,2]
[361108443,1747264252489,-400.0,0.00011451,2]
[361108444,1747264252499,-400.0,0.00011451,2]
[361108445,1747264252508,-400.0,0.00011451,2]
[361108446,1747264252519,-400.0,0.00011451,2]
[361108447,1747264252529,-400.0,0.00011451,2]
[361108448,1747264252541,-400.0,0.00011451,2]
[361108449,1747264252551,-763.26,0.00011451,2]
[361108450,1747264252561,-400.0,0.00011451,2]
[361108451,1747264252570,-400.0,0.00011451,2]
[361108452,1747264252580,-400.0,0.00011451,2]
[361108453,1747264252590,-459.53,0.00011451,2]
[361108454,1747264252599,-603.55,0.00011451,2]
[361108455,1747264252609,-400.0,0.00011451,2]
[361108456,1747264252618,-400.0,0.00011451,2]
[361108457,1747264252628,-400.0,0.00011451,2]
[361108458,1747264252637,-318.26741263,0.00011451,2]
[361108459,1747264252647,-400.0,0.00011451,2]
[361108460,1747264252656,-400.0,0.00011451,2]
[361108461,1747264252666,-400.0,0.00011451,2]
[361108462,1747264252675,-400.0,0.00011451,2]
[361108463,1747264252685,-400.0,0.00011451,2]
[361108464,1747264252694,-400.0,0.00011451,2]
[361108465,1747264252705,-168.2659632,0.00011451,2]
[361108466,1747264252714,-400.0,0.00011451,2]
[361108467,1747264252724,-836.53,0.00011451,2]
[361108468,1747264252733,-506.29090192,0.00011451,2]
[361108469,1747264252743,-250.0,0.00011451,2]
[361108470,1747264252753,-400.0,0.00011451,2]
[361108471,1747264252763,-457.6824992,0.00011451,2]
[361108472,1747264252772,-400.0,0.00011451,2]
[361108473,1747264252782,-400.0,0.00011451,2]
[361108474,1747264252791,-400.0,0.00011451,2]
[361108475,1747264252801,-474.90975149,0.00011451,2]
[361108476,1747264252810,-547.56,0.00011451,2]
[361108477,1747264252819,-400.0,0.00011451,2]
[361108478,1747264252828,-400.0,0.00011451,2]
[361108479,1747264252838,-400.0,0.00011451,2]
[361108480,1747264252847,-400.0,0.00011451,2]
[361108481,1747264252857,-453.66,0.00011451,2]
[361108482,1747264252866,-400.0,0.00011451,2]
[361108483,1747264252875,-400.0,0.00011451,2]
[361108484,1747264252885,-456.79,0.00011451,2]
[361108485,1747264252894,-624.04,0.00011451,2]
[361108486,1747264252903,-400.0,0.00011451,2]
[361108487,1747264252913,-400.0,0.00011451,2]
[361108488,1747264252922,-554.63,0.00011451,2]
[361108489,1747264252931,-400.0,0.00011451,2]
[361108490,1747264252940,-400.0,0.00011451,2]
[361108491,1747264252950,-400.0,0.00011451,2]
[361108492,1747264252959,-565.99,0.00011451,2]
[361108493,1747264252969,-400.0,0.00011451,2]
[361108494,1747264252978,-513.3,0.00011451,2]
[361108495,1747264252987,-400.0,0.00011451,2]
[361108496,1747264252996,-400.0,0.00011451,2]
[361108497,1747264253005,-450.0,0.00011451,2]
[361108498,1747264253014,-400.0,0.00011451,2]
[361108499,1747264253024,-400.0,0.00011451,2]
[361108500,1747264253033,-400.0,0.00011451,2]
[361108501,1747264253043,-400.0,0.00011451,2]
[361108502,1747264253052,-400.0,0.00011451,2]
[361108503,1747264253062,-400.0,0.00011451,2]
[361108504,1747264253072,-400.0,0.00011451,2]
[361108505,1747264253081,-400.0,0.00011451,2]
[361108506,1747264253091,-400.0,0.00011451,2]
[361108507,1747264253100,-400.0,0.00011451,2]
[361108508,1747264253108,-400.0,0.00011451,2]
[361108509,1747264253117,-400.0,0.00011451,2]
[361108510,1747264253124,-400.0,0.00011451,2]
[361108511,1747264253133,-470.57,0.00011451,2]
[361108512,1747264253141,-412.08878214,0.00011451,2]
[361108513,1747264253151,-400.0,0.00011451,2]
[361108514,1747264253162,-400.0,0.00011451,2]
[361108515,1747264253172,-161.44741019,0.00011451,2]
[361108516,1747264253182,-400.0,0.00011451,2]
[361108517,1747264253191,-400.0,0.00011451,2]
[361108518,1747264253201,-400.0,0.00011451,2]
[361108519,1747264253211,-724.75,0.00011451,2]
[361108520,1747264253220,-400.0,0.00011451,2]
[361108521,1747264253230,-400.0,0.00011451,2]
[361108522,1747264253239,-400.0,0.00011451,2]
[361108523,1747264253248,-1542.16,0.00011451,2]
[361108524,1747264253258,-400.0,0.00011451,2]
[361108525,1747264253267,-488.4356275,0.00011451,2]
[361108526,1747264253276,-400.0,0.00011451,2]
[361108527,1747264253285,-426.08,0.00011451,2]
[361108528,1747264253294,-400.0,0.00011451,2]
[361108529,1747264253303,-400.0,0.00011451,2]
[361108530,1747264253313,-400.0,0.00011451,2]
[361108531,1747264253322,-400.0,0.00011451,2]
[361108532,1747264253331,-400.0,0.00011451,2]
[361108533,1747264253340,-400.0,0.00011451,2]
[361108534,1747264253349,-400.0,0.00011451,2]
[361108535,1747264253358,-400.0,0.00011451,2]
[361108536,1747264253368,-400.0,0.00011451,2]
[361108537,1747264253377,-162.09156644,0.00011451,2]
[361108538,1747264253387,-400.0,0.00011451,2]
[361108539,1747264253396,-400.0,0.00011451,2]
[361108540,1747264253406,-400.0,0.00011451,2]
[361108541,1747264253416,-400.0,0.00011451,2]
[361108542,1747264253425,-457.48284164,0.00011451,2]
[361108543,1747264253436,-400.0,0.00011451,2]
[361108544,1747264253446,-400.0,0.00011451,2]
[361108545,1747264253455,-400.0,0.00011451,2]
[361108546,1747264253465,-400.0,0.00011451,2]
[361108547,1747264253475,-400.0,0.00011451,2]
[361108548,1747264253485,-400.0,0.00011451,2]
[361108549,1747264253494,-400.0,0.00011451,2]
[361108550,1747264253503,-400.0,0.00011451,2]
[361108551,1747264253512,-400.0,0.00011451,2]
[361108552,1747264253522,-400.0,0.00011451,2]
[361108553,1747264253531,-414.58067416,0.00011451,2]
[361108554,1747264253545,-400.0,0.00011451,2]
[361108555,1747264253554,-221.05770126,0.00011451,2]
[361108556,1747264253563,-400.0,0.00011451,2]
[361108557,1747264253573,-400.0,0.00011451,2]
[361108558,1747264253582,-400.0,0.00011451,2]
[361108559,1747264253592,-400.0,0.00011451,2]
[361108560,1747264253601,-461.17,0.00011451,2]
[361108561,1747264253611,-400.0,0.00011451,2]
[361108562,1747264253621,-400.0,0.00011451,2]
[361108563,1747264253631,-400.0,0.00011451,2]
[361108564,1747264253642,-400.0,0.00011451,2]
[361108565,1747264253651,-215.57429801,0.00011451,2]
[361108566,1747264253660,-400.0,0.00011451,2]
[361108567,1747264253670,-400.0,0.00011451,2]
[361108568,1747264253679,-400.0,0.00011451,2]
[361108569,1747264253688,-400.0,0.00011451,2]
[361108570,1747264253697,-400.0,0.00011451,2]
[361108571,1747264253707,-400.0,0.00011451,2]
[361108572,1747264253717,-400.0,0.00011451,2]
[361108573,1747264253727,-503.92554047,0.00011451,2]
[361108574,1747264253736,-297.04875532,0.00011451,2]
[361108575,1747264253746,-400.0,0.00011451,2]
[361108576,1747264253755,-400.0,0.00011451,2]
[361108577,1747264253764,-400.0,0.00011451,2]
[361108578,1747264253772,-400.0,0.00011451,2]
[361108579,1747264253781,-400.0,0.00011451,2]
[361108580,1747264253791,-400.0,0.00011451,2]
[361108581,1747264253800,-400.0,0.00011451,2]
[361108582,1747264253809,-400.0,0.00011451,2]
[361108583,1747264253818,-400.0,0.00011451,2]
[361108584,1747264253827,-400.0,0.00011451,2]
[361108585,1747264253836,-400.0,0.00011451,2]
[361108586,1747264253846,-400.0,0.00011451,2]
[361108587,1747264253855,-400.0,0.00011451,2]
[361108588,1747264253864,-423.71605396,0.00011451,2]
[361108589,1747264253874,-400.0,0.00011451,2]
[361108590,1747264253884,-400.0,0.00011451,2]
[361108591,1747264253893,-400.0,0.00011451,2]
[361108592,1747264253903,-400.0,0.00011451,2]
[361108593,1747264253912,-400.0,0.00011451,2]
[361108594,1747264253922,-400.0,0.00011451,2]
[361108595,1747264253933,-192.01,0.00011451,2]
[361108596,1747264253942,-400.0,0.00011451,2]
[361108597,1747264253952,-540.81,0.00011451,2]
[361108598,1747264253962,-400.0,0.00011451,2]
[361108599,1747264253971,-400.0,0.00011451,2]
[361108600,1747264253980,-409.69,0.00011451,2]
[361108601,1747264253989,-400.0,0.00011451,2]
[361108602,1747264253998,-480.65934466,0.00011451,2]
[361108603,1747264254007,-504.43987742,0.00011451,2]
[361108604,1747264254020,-151.0,0.00011451,2]
[361108605,1747264254030,-151.0,0.00011451,2]
[361108606,1747264254039,-192.54329284,0.00011451,2]
[361108607,1747264254048,-151.0,0.00011451,2]
[361108608,1747264254057,-400.0,0.00011451,2]
[361108609,1747264254066,-561.38,0.00011451,2]
[361108610,1747264254076,-400.0,0.00011451,2]
[361108611,1747264254085,-400.0,0.00011451,2]
[361108612,1747264254094,-151.0,0.00011451,2]
[361108613,1747264254103,-400.0,0.00011451,2]
[361108614,1747264254112,-400.0,0.00011451,2]
[361108615,1747264254122,-400.0,0.00011451,2]
[361108616,1747264254132,-400.0,0.00011451,2]
[361108617,1747264254143,-151.0,0.00011451,2]
[361108618,1747264254153,-400.0,0.00011451,2]
[361108619,1747264254163,-400.0,0.00011451,2]
[361108620,1747264254172,-400.0,0.00011451,2]
[361108621,1747264254181,-151.0,0.00011451,2]
[361108622,1747264254190,-400.0,0.00011451,2]
[361108623,1747264254200,-151.0,0.00011451,2]
[361108624,1747264254210,-151.0,0.00011451,2]
[361108625,1747264254220,-400.0,0.00011451,2]
[361108626,1747264254229,-400.0,0.00011451,2]
[361108627,1747264254238,-177.496042,0.00011451,2]
[361108628,1747264254247,-483.14,0.00011451,2]
[361108629,1747264254256,-400.0,0.00011451,2]
[361108630,1747264254265,-177.496042,0.00011451,2]
[361108631,1747264254274,-151.0,0.00011451,2]
[361108632,1747264254284,-400.0,0.00011451,2]
[361108633,1747264254293,-400.0,0.00011451,2]
[361108634,1747264254302,-400.0,0.00011451,2]
[361108635,1747264254311,-400.0,0.00011451,2]
[361108636,1747264254320,-400.0,0.00011451,2]
[361108637,1747264254330,-4060.63,0.00011451,2]
[361108638,1747264254339,-400.0,0.00011451,2]
[361108639,1747264254348,-151.0,0.00011451,2]
[361108640,1747264254358,-1223.31,0.00011451,2]
[361108641,1747264254367,-400.0,0.00011451,2]
[361108642,1747264254376,-151.0,0.00011451,2]
[361108643,1747264254385,-400.0,0.00011451,2]
[361108644,1747264254395,-979.31,0.00011451,2]
[361108645,1747264254404,-151.0,0.00011451,2]
[361108646,1747264254414,-200.0,0.00011451,2]
[361108647,1747264254424,-400.0,0.00011451,2]
[361108648,1747264254434,-400.0,0.00011451,2]
[361108649,1747264254443,-151.0,0.00011451,2]
[361108650,1747264254453,-400.0,0.00011451,2]
[361108651,1747264254463,-1142.69,0.00011451,2]
[361108652,1747264254473,-400.0,0.00011451,2]
[361108653,1747264254482,-400.0,0.00011451,2]
[361108654,1747264254491,-400.0,0.00011451,2]
[361108655,1747264254501,-686.05,0.00011451,2]
[361108656,1747264254510,-151.0,0.00011451,2]
[361108657,1747264254521,-400.0,0.00011451,2]
[361108658,1747264254531,-400.0,0.00011451,2]
[361108659,1747264254545,-748.6,0.00011451,2]
[361108660,1747264254555,-417.26,0.00011451,2]
[361108661,1747264254564,-17752.639011,0.00011451,2]
[361108662,1747264254573,-1672.785287,0.00011451,2]
[361108663,1747264254583,-400.0,0.00011451,2]